bitfinex/quotes_BTCUSD_20230405
["timestamp","ask_amount","ask_price","bid_price","bid_amount"]
[1680677232914,6.34628186,28501.0,28500.0,0.05639178]
[1680677233939,6.34628186,28501.0,28500.0,0.00544178]
[1680677234368,6.34628186,28501.0,28500.0,0.05733478]
[1680677234789,6.34607186,28501.0,28500.0,0.00537716]
[1680677235848,6.34607186,28501.0,28500.0,0.05496916]
[1680677238277,6.64628186,28501.0,28500.0,0.05496916]
[1680677238487,6.64628186,28501.0,28500.0,0.00537716]
[1680677239262,6.72018186,28501.0,28500.0,0.00537716]
[1680677241607,6.72018186,28501.0,28500.0,0.13866576]
[1680677241809,6.72018186,28501.0,28500.0,0.05464116]
[1680677242465,6.72018186,28501.0,28500.0,0.13866576]
[1680677247168,6.72018186,28501.0,28500.0,0.26471955]
[1680677249227,6.64628186,28501.0,28500.0,0.26471955]
[1680677252255,6.64628186,28501.0,28500.0,0.18069495]
[1680677252906,6.64628186,28501.0,28500.0,0.26479023]
[1680677253127,6.64628186,28501.0,28500.0,0.26479016]
[1680677253760,6.64628186,28501.0,28500.0,0.18069495]
[1680677253946,6.64628186,28501.0,28500.0,0.26479204]
[1680677254178,6.64628186,28501.0,28500.0,0.18069495]
[1680677255943,6.64628186,28501.0,28500.0,0.13143095]
[1680677256621,6.64628186,28501.0,28500.0,0.18430795]
[1680677256811,6.64628186,28501.0,28500.0,0.18133795]
[1680677257035,6.64628186,28501.0,28500.0,0.13143095]
[1680677257450,6.6460031,28501.0,28500.0,0.18358995]
[1680677257572,6.6460031,28501.0,28500.0,0.18364995]
[1680677259316,6.7193031,28501.0,28500.0,0.18364995]
[1680677261367,6.7193031,28501.0,28500.0,0.18112495]
[1680677266053,6.7193031,28501.0,28500.0,0.34889261]
[1680677266271,6.7193031,28501.0,28500.0,0.18124495]
[1680677266477,6.7193031,28501.0,28500.0,0.34889261]
[1680677266710,6.7193031,28501.0,28500.0,0.34901261]
[1680677266922,6.7193031,28501.0,28500.0,0.18124495]
[1680677267143,6.7193031,28501.0,28500.0,0.18112495]
[1680677267355,6.7193031,28501.0,28500.0,0.35032761]
[1680677267570,6.7193031,28501.0,28500.0,0.35044761]
[1680677268465,6.37423124,28501.0,28500.0,0.35044761]
[1680677268964,6.37423124,28501.0,28500.0,0.29937861]
[1680677269396,6.30093124,28501.0,28500.0,0.29937861]
[1680677269614,6.30093124,28501.0,28500.0,0.34915661]
[1680677270459,6.00093124,28501.0,28500.0,0.22310282]
[1680677273198,6.00093124,28501.0,28500.0,0.43281239]
[1680677273810,6.00093124,28501.0,28500.0,0.22310282]
[1680677275576,6.00093124,28501.0,28500.0,0.17332482]
[1680677275577,6.3987553,28501.0,28500.0,0.17332482]
[1680677276513,6.08293124,28501.0,28500.0,0.08970957]
[1680677276741,6.73890601,28501.0,28500.0,0.00537716]
[1680677277402,6.38193124,28501.0,28500.0,0.00137716]
[1680677277607,6.38893124,28501.0,28500.0,0.00137716]
[1680677279309,6.46263124,28501.0,28500.0,0.00137716]
[1680677279549,6.46263124,28501.0,28497.0,0.08415241]
[1680677279550,0.1478,28500.0,28497.0,0.08415241]
[1680677279776,0.1478,28498.0,28497.0,0.08415241]
[1680677280199,0.1478,28497.0,28496.0,0.21445906]
[1680677280415,0.3031,28497.0,28496.0,0.21445906]
[1680677280631,0.3027,28497.0,28496.0,0.21445906]
[1680677280856,0.3027,28497.0,28496.0,0.08823044]
[1680677281092,0.3097,28497.0,28496.0,0.08823044]
[1680677281418,0.6252165,28497.0,28496.0,0.08823044]
[1680677283511,0.6252165,28497.0,28496.0,0.00395803]
[1680677283754,0.6252165,28497.0,28496.0,0.00389803]
[1680677284434,0.6252165,28497.0,28496.0,0.08805044]
[1680677284435,0.6184265,28497.0,28496.0,0.08805044]
[1680677284656,0.6182165,28497.0,28496.0,0.08823044]
[1680677284852,0.6182165,28497.0,28496.0,0.00407803]
[1680677285074,0.6182165,28497.0,28496.0,0.00395803]
[1680677285502,0.6252165,28497.0,28496.0,0.00395803]
[1680677285726,0.3155165,28497.0,28496.0,0.06019803]
[1680677286040,0.3964165,28497.0,28496.0,0.06025803]
[1680677288776,0.0809,28497.0,28496.0,0.06025803]
[1680677288960,0.0809,28497.0,28496.0,0.06019803]
[1680677289187,0.0809,28497.0,28496.0,0.06031803]
[1680677289398,0.0809,28497.0,28496.0,0.06019803]
[1680677291481,0.4781538,28497.0,28496.0,0.06019803]
[1680677296134,0.0809,28497.0,28496.0,0.06019803]
[1680677296573,0.0809,28497.0,28496.0,0.06025803]
[1680677296818,0.0809,28497.0,28496.0,0.06031803]
[1680677297612,0.0809,28497.0,28496.0,0.00401803]
[1680677297805,0.0809,28497.0,28496.0,0.00395803]
[1680677299790,0.0809,28497.0,28496.0,0.00389803]
[1680677300725,0.0809,28497.0,28496.0,0.05383903]
[1680677300930,0.0809,28497.0,28496.0,0.05353103]
[1680677301139,0.0809,28497.0,28496.0,0.00401803]
[1680677301349,0.0809,28497.0,28496.0,0.00395803]
[1680677301774,0.0809,28497.0,28496.0,0.05575003]
[1680677301980,0.0809,28497.0,28496.0,0.05581003]
[1680677302395,0.0809,28497.0,28496.0,0.00401803]
[1680677302600,0.0809,28497.0,28496.0,0.05604803]
[1680677302806,0.0809,28497.0,28496.0,0.05533003]
[1680677303009,0.0809,28497.0,28496.0,0.05521003]
[1680677303222,0.0809,28497.0,28496.0,0.30322404]
[1680677303420,0.0809,28497.0,28496.0,0.30328404]
[1680677304684,0.007,28497.0,28496.0,0.30328404]
[1680677304898,0.007,28497.0,28496.0,0.42951266]
[1680677305327,0.007,28497.0,28496.0,0.44354966]
[1680677305556,0.007,28497.0,28496.0,1.16646022]
[1680677306452,0.00021,28500.0,28496.0,1.21998022]
[1680677306734,0.00021,28500.0,28498.0,0.1]
[1680677306924,0.00021,28500.0,28499.0,0.045183]
[1680677307569,0.00121,28500.0,28499.0,0.045183]
[1680677307998,0.00021,28500.0,28499.0,0.045183]
[1680677308221,0.00121,28500.0,28499.0,0.047183]
[1680677308865,0.36065126,28500.0,28499.0,0.047183]
[1680677309775,0.00121,28500.0,28499.0,0.33408999]
[1680677309991,0.001,28500.0,28499.0,0.33408999]
[1680677310215,0.001,28500.0,28499.0,0.41825528]
[1680677310904,0.001,28500.0,28499.0,0.77296584]
[1680677317989,0.001,28500.0,28499.0,0.606311]
[1680677318226,0.001,28500.0,28499.0,0.63714]
[1680677319993,0.001,28500.0,28499.0,1.27858737]
[1680677320202,0.001,28500.0,28499.0,1.16282237]
[1680677320435,0.001,28500.0,28499.0,1.33826237]
[1680677320645,0.001,28500.0,28499.0,1.35229737]
[1680677321069,6.00014124,28501.0,28499.0,1.35229737]
[1680677321277,0.003,28500.0,28499.0,0.88402281]
[1680677321508,0.003,28500.0,28499.0,1.19991238]
[1680677321702,0.003,28500.0,28499.0,0.81476281]
[1680677321931,6.00014124,28501.0,28499.0,0.80976281]
[1680677322166,6.00314124,28501.0,28500.0,0.23028985]
[1680677322390,6.00014124,28501.0,28500.0,0.23028985]
[1680677322610,6.00014124,28501.0,28500.0,0.18829779]
[1680677322825,6.00014124,28501.0,28500.0,0.50260184]
[1680677323042,6.00014124,28501.0,28500.0,0.62857969]
[1680677323257,6.00014124,28501.0,28500.0,0.5445939]
[1680677323475,6.00014124,28501.0,28500.0,0.98327123]
[1680677323645,6.00014124,28501.0,28500.0,0.85729338]
[1680677323863,6.00214124,28501.0,28500.0,0.86229338]
[1680677324830,6.00214124,28501.0,28500.0,0.54798933]
[1680677325051,6.00214124,28501.0,28500.0,0.91993756]
[1680677325052,5.88655801,28501.0,28500.0,0.91993756]
[1680677325478,5.83173441,28501.0,28500.0,1.1712368]
[1680677325689,5.83173441,28501.0,28500.0,1.4088116]
[1680677326578,5.83173441,28501.0,28500.0,1.4038116]
[1680677326791,5.82973441,28501.0,28500.0,1.4038116]
[1680677327005,5.83073441,28501.0,28500.0,1.4318116]
[1680677327210,5.82973441,28501.0,28500.0,1.4038116]
[1680677327432,5.83073441,28501.0,28500.0,1.4318116]
[1680677328500,5.83073441,28501.0,28500.0,1.12572756]
[1680677329342,5.83094441,28501.0,28500.0,1.0286095]
[1680677329572,5.83094441,28501.0,28500.0,1.0524465]
[1680677330837,5.83094441,28501.0,28500.0,1.31224574]
[1680677331272,5.83094441,28501.0,28500.0,1.11572957]
[1680677331490,5.83094441,28501.0,28500.0,1.36708282]
[1680677331700,5.83094441,28501.0,28500.0,1.53708282]
[1680677332842,5.83094441,28501.0,28500.0,1.52858282]
[1680677334125,5.83094441,28501.0,28500.0,1.27722957]
[1680677335035,5.83094441,28501.0,28500.0,1.45262957]
[1680677335464,5.83094441,28501.0,28500.0,1.46112957]
[1680677335890,5.83094441,28501.0,28500.0,1.46244957]
[1680677336538,5.83094441,28501.0,28500.0,1.815799]
[1680677336753,5.83094441,28501.0,28500.0,1.57711593]
[1680677340725,5.83094441,28501.0,28500.0,1.2224465]
[1680677341578,5.83094441,28501.0,28500.0,1.27722978]
[1680677341999,5.83094441,28501.0,28500.0,1.05522978]
[1680677342360,5.83094441,28501.0,28500.0,1.0004465]
[1680677342604,5.83094441,28501.0,28500.0,1.05522935]
[1680677342811,5.83094441,28501.0,28500.0,1.44771638]
[1680677343544,5.83094441,28501.0,28500.0,1.05522935]
[1680677343719,5.83094441,28501.0,28500.0,1.43610618]
[1680677344098,5.83094441,28501.0,28500.0,1.05522935]
[1680677344988,5.83094441,28501.0,28500.0,1.06420141]
[1680677346487,5.83094441,28501.0,28500.0,1.42793069]
[1680677347960,5.83094441,28501.0,28500.0,1.06420141]
[1680677348167,5.83094441,28501.0,28500.0,1.07270141]
[1680677348905,5.83094441,28501.0,28500.0,1.43636572]
[1680677349106,5.83094441,28501.0,28500.0,1.07270141]
[1680677349310,5.83094441,28501.0,28500.0,1.44792141]
[1680677349520,5.83073441,28501.0,28500.0,1.44798141]
[1680677349986,5.83073441,28501.0,28500.0,1.44804141]
[1680677350180,5.83073441,28501.0,28500.0,1.69939466]
[1680677350418,5.83073441,28501.0,28500.0,1.44804141]
[1680677351087,5.83061919,28501.0,28500.0,1.44804141]
[1680677351318,5.83061919,28501.0,28500.0,1.44810141]
[1680677351536,5.83061919,28501.0,28500.0,1.69945466]
[1680677351752,5.83061919,28501.0,28500.0,2.12400827]
[1680677351982,5.83061919,28501.0,28500.0,1.69945466]
[1680677352206,5.83061919,28501.0,28500.0,2.06672241]
[1680677352429,5.83061919,28501.0,28500.0,1.69945466]
[1680677353953,5.83061919,28501.0,28500.0,2.11546998]
[1680677355019,5.83061919,28501.0,28500.0,1.69945466]
[1680677355238,5.77751919,28501.0,28500.0,1.69945466]
[1680677355454,5.77751919,28501.0,28500.0,2.06531793]
[1680677355873,5.77751919,28501.0,28500.0,1.6980677]
[1680677356087,5.77751919,28501.0,28500.0,1.86224662]
[1680677356535,5.77751919,28501.0,28500.0,1.44678141]
[1680677357494,5.77751919,28501.0,28500.0,1.87924706]
[1680677357749,5.77751919,28501.0,28500.0,1.44678141]
[1680677358338,5.77751919,28501.0,28500.0,1.81812201]
[1680677359220,5.77751919,28501.0,28500.0,1.44678141]
[1680677359437,5.77751919,28501.0,28500.0,2.01197319]
[1680677359438,5.71995441,28501.0,28500.0,2.01197319]
[1680677359649,5.71995441,28501.0,28500.0,2.01329319]
[1680677359874,5.71995441,28501.0,28500.0,1.99580141]
[1680677360110,5.71995441,28501.0,28500.0,2.36607946]
[1680677361162,5.71995441,28501.0,28500.0,1.99448141]
[1680677361377,5.71995441,28501.0,28500.0,1.99580141]
[1680677361801,5.71995441,28501.0,28500.0,2.3665889]
[1680677362013,5.71995441,28501.0,28500.0,2.2194889]
[1680677362448,4.41902818,28501.0,28500.0,2.05748141]
[1680677362700,1.2194648,28501.0,28500.0,2.40910141]
[1680677362920,0.5449,28514.0,28507.0,0.40319]
[1680677363140,0.5449,28514.0,28513.0,0.54355]
[1680677363357,0.0739,28514.0,28513.0,1.006373]
[1680677363576,0.0739,28514.0,28513.0,0.84542134]
[1680677363801,0.0739,28514.0,28513.0,1.2001319]
[1680677364246,0.0739,28514.0,28513.0,1.28394462]
[1680677364487,0.0739,28514.0,28513.0,1.63415569]
[1680677364724,0.0739,28514.0,28513.0,1.2001319]
[1680677364937,0.0739,28514.0,28513.0,1.68375637]
[1680677365130,0.0739,28514.0,28513.0,1.2281319]
[1680677365581,0.0739,28514.0,28513.0,1.71004026]
[1680677368662,0.0739,28514.0,28513.0,1.53469026]
[1680677368878,0.0739,28514.0,28513.0,1.70469026]
[1680677369525,0.0739,28514.0,28513.0,1.74659663]
[1680677370657,0.0739,28514.0,28513.0,1.83049823]
[1680677370871,0.0739,28514.0,28513.0,1.74659663]
[1680677371526,0.0739,28514.0,28513.0,1.83049827]
[1680677371742,0.0739,28514.0,28513.0,1.83050428]
[1680677372237,0.0739,28514.0,28513.0,1.69075719]
[1680677372427,0.0739,28514.0,28513.0,1.70478519]
[1680677374652,0.0739,28514.0,28513.0,1.74659663]
[1680677375972,0.0739,28514.0,28513.0,1.83048696]
[1680677376190,0.0739,28514.0,28513.0,1.83048661]
[1680677376400,0.0739,28514.0,28513.0,1.83048714]
[1680677377908,0.0739,28514.0,28513.0,1.83048458]
[1680677378362,0.0739,28514.0,28513.0,1.70476549]
[1680677378820,0.0739,28514.0,28513.0,1.83048458]
[1680677379264,0.04614,28515.0,28514.0,0.1]
[1680677379479,0.04614,28515.0,28514.0,0.7278059]
[1680677380171,0.04614,28515.0,28514.0,0.91417675]
[1680677380613,0.04614,28515.0,28514.0,0.84217675]
[1680677381702,0.04614,28515.0,28514.0,1.0260647]
[1680677382572,0.04614,28515.0,28514.0,1.24357783]
[1680677383716,0.04614,28515.0,28514.0,1.21557783]
[1680677383931,0.04614,28515.0,28514.0,1.25740897]
[1680677384143,0.04614,28515.0,28514.0,1.40378719]
[1680677384379,0.04614,28515.0,28514.0,1.23610174]
[1680677384571,0.04614,28515.0,28514.0,1.40366719]
[1680677384795,0.04614,28515.0,28514.0,1.13604174]
[1680677385019,0.04614,28515.0,28514.0,1.13616174]
[1680677385238,0.04602213,28515.0,28514.0,1.13604174]
[1680677385886,0.04602213,28515.0,28514.0,1.10804174]
[1680677386104,0.04602213,28515.0,28514.0,1.13604174]
[1680677386342,0.04602213,28515.0,28514.0,1.10804174]
[1680677386530,0.04602213,28515.0,28514.0,1.13604174]
[1680677387442,0.04602213,28515.0,28514.0,1.10804174]
[1680677387684,0.04602213,28515.0,28514.0,1.13604174]
[1680677387901,0.04602213,28515.0,28514.0,1.10804174]
[1680677388670,0.04602213,28515.0,28514.0,1.13604174]
[1680677388929,0.04602213,28515.0,28514.0,1.10804174]
[1680677389135,0.04602213,28515.0,28514.0,1.13604174]
[1680677389339,0.0739,28516.0,28514.0,1.13604174]
[1680677389564,0.0739,28516.0,28515.0,0.66807608]
[1680677389750,0.0739,28516.0,28515.0,0.68210308]
[1680677389973,0.0739,28516.0,28515.0,0.5982509]
[1680677390214,0.0739,28516.0,28515.0,0.68210308]
[1680677390470,0.0739,28516.0,28515.0,0.71010308]
[1680677390973,0.0739,28516.0,28515.0,0.84718696]
[1680677391202,0.0739,28516.0,28515.0,0.76333478]
[1680677392175,0.0739,28516.0,28515.0,0.84718696]
[1680677393129,0.0739,28516.0,28515.0,1.02251696]
[1680677396881,0.0739,28516.0,28515.0,0.99451696]
[1680677397006,0.0739,28516.0,28515.0,1.02251696]
[1680677397228,0.0739,28516.0,28515.0,0.99451696]
[1680677397431,0.0739,28516.0,28515.0,0.89929999]
[1680677397633,0.0739,28516.0,28515.0,1.31984616]
[1680677398281,0.0739,28516.0,28515.0,1.51547161]
[1680677398485,0.0739,28516.0,28515.0,1.14451616]
[1680677398685,0.0739,28516.0,28515.0,1.31214161]
[1680677398886,0.0739,28516.0,28515.0,1.14451616]
[1680677399121,0.0739,28516.0,28515.0,1.21442252]
[1680677399328,0.02364001,28517.0,28515.0,1.21442252]
[1680677399542,0.02343001,28517.0,28516.0,0.43896171]
[1680677399757,0.02343001,28517.0,28516.0,0.83575327]
[1680677400155,0.02343001,28517.0,28516.0,0.75186912]
[1680677401187,0.02343001,28517.0,28516.0,0.86185745]
[1680677401392,0.02343001,28517.0,28516.0,0.88985745]
[1680677401878,0.02343001,28517.0,28516.0,0.73509109]
[1680677402052,0.02343001,28517.0,28516.0,0.75213709]
[1680677402262,0.02343001,28517.0,28516.0,0.92746709]
[1680677402470,0.02343001,28517.0,28516.0,0.89946709]
[1680677402899,0.02343001,28517.0,28516.0,0.92746709]
[1680677403097,0.02343001,28517.0,28516.0,0.89946709]
[1680677403933,0.02343001,28517.0,28516.0,0.92746709]
[1680677404151,0.02343001,28517.0,28516.0,0.96245709]
[1680677404356,0.02343001,28517.0,28516.0,1.13008254]
[1680677404714,0.02303001,28517.0,28516.0,0.95475254]
[1680677407478,0.02303001,28517.0,28516.0,0.95487254]
[1680677407705,0.02303001,28517.0,28516.0,0.95475254]
[1680677408341,0.02303001,28517.0,28516.0,1.16428435]
[1680677409254,0.09693001,28517.0,28516.0,1.16428435]
[1680677409481,0.09693001,28517.0,28516.0,1.16440435]
[1680677416499,0.09693001,28517.0,28516.0,0.9967789]
[1680677416939,0.09693001,28517.0,28516.0,0.9966589]
[1680677425092,0.09683547,28517.0,28516.0,0.9966589]
[1680677426436,0.09683547,28517.0,28516.0,0.78712709]
[1680677432543,0.12968901,28517.0,28516.0,0.67713876]
[1680677432793,0.50311444,28517.0,28516.0,0.3225482]
[1680677433006,0.50311444,28517.0,28516.0,0.3055622]
[1680677433007,0.42921444,28517.0,28516.0,0.3055622]
[1680677433224,0.42921444,28517.0,28516.0,0.3227762]
[1680677435765,0.42942444,28517.0,28516.0,0.3227162]
[1680677436192,0.05578901,28517.0,28516.0,0.3227762]
[1680677436436,0.05578901,28517.0,28516.0,0.68397156]
[1680677439249,0.12968901,28517.0,28516.0,0.68397156]
[1680677439510,0.12968901,28517.0,28516.0,0.68409156]
[1680677440609,0.1383732,28517.0,28516.0,0.68409156]
[1680677441073,0.0644732,28517.0,28516.0,0.85281676]
[1680677441292,0.0644732,28517.0,28516.0,1.00757447]
[1680677441509,0.0644732,28517.0,28516.0,1.37883864]
[1680677441728,0.02293547,28517.0,28516.0,1.44196479]
[1680677441947,0.02293547,28517.0,28516.0,1.44190479]
[1680677442163,0.02293547,28517.0,28516.0,1.53783896]
[1680677442385,0.02293547,28517.0,28516.0,1.71321896]
[1680677442610,0.02293547,28517.0,28516.0,1.34189479]
[1680677442840,0.07271923,28517.0,28516.0,1.34189479]
[1680677443705,0.07271923,28517.0,28516.0,1.34195479]
[1680677444616,0.07271923,28517.0,28516.0,1.31395479]
[1680677444833,0.07271923,28517.0,28516.0,1.34195479]
[1680677445062,0.0726542,28517.0,28516.0,1.34177479]
[1680677447892,0.0726542,28517.0,28516.0,1.34178479]
[1680677448292,0.0726542,28517.0,28516.0,1.31378479]
[1680677448517,0.0726542,28517.0,28516.0,1.34178479]
[1680677448718,0.0726542,28517.0,28516.0,1.31378479]
[1680677449012,0.0726542,28517.0,28516.0,1.34178479]
[1680677449674,0.02287044,28517.0,28516.0,1.34178479]
[1680677450615,0.07253779,28517.0,28516.0,1.34178479]
[1680677451175,0.07253779,28517.0,28516.0,1.16645479]
[1680677451394,0.07253779,28517.0,28516.0,1.34177479]
[1680677452228,0.07253779,28517.0,28516.0,1.593602]
[1680677452638,0.07253779,28517.0,28516.0,0.92084768]
[1680677452796,0.07253779,28517.0,28516.0,0.86608997]
[1680677453023,0.07253779,28517.0,28516.0,0.61426276]
[1680677453912,0.07253779,28517.0,28516.0,0.87293426]
[1680677454129,0.07274779,28517.0,28516.0,0.87293426]
[1680677455880,0.07274779,28517.0,28516.0,1.04826426]
[1680677456085,0.07253779,28517.0,28516.0,1.04838426]
[1680677456311,0.07274779,28517.0,28516.0,1.04826426]
[1680677456759,0.07274779,28517.0,28516.0,0.87293426]
[1680677458040,0.07253779,28517.0,28516.0,0.97284062]
[1680677458864,0.07253779,28517.0,28516.0,1.14817062]
[1680677459295,0.07253779,28517.0,28516.0,1.18316062]
[1680677460926,0.07253779,28517.0,28516.0,1.66513138]
[1680677461687,0.07253779,28517.0,28516.0,1.91695859]
[1680677461916,0.07253779,28517.0,28516.0,1.97171732]
[1680677462473,0.07253779,28517.0,28516.0,1.97911732]
[1680677467025,0.07253779,28517.0,28516.0,1.87911732]
[1680677471202,0.07253779,28517.0,28516.0,1.87922732]
[1680677472277,0.07253779,28517.0,28516.0,1.87910732]
[1680677476994,0.07253779,28517.0,28516.0,1.87922732]
[1680677477205,0.07253779,28517.0,28516.0,1.62740011]
[1680677477775,0.07253779,28517.0,28516.0,1.62728011]
[1680677479420,0.07253779,28517.0,28516.0,1.44696011]
[1680677479606,0.07253779,28517.0,28516.0,1.62228011]
[1680677482850,0.07253779,28517.0,28516.0,1.36360861]
[1680677483081,0.07253779,28517.0,28516.0,1.73603453]
[1680677483534,0.07253779,28517.0,28516.0,1.37210861]
[1680677484176,0.07253779,28517.0,28516.0,1.55779513]
[1680677484387,0.07253779,28517.0,28516.0,1.92599513]
[1680677485986,0.07253779,28517.0,28516.0,2.2973793]
[1680677486198,0.07253779,28517.0,28516.0,2.2972593]
[1680677486853,0.07253779,28517.0,28516.0,1.92599513]
[1680677487071,0.07253779,28517.0,28516.0,2.29836188]
[1680677487512,0.07253779,28517.0,28516.0,1.92599513]
[1680677487935,0.07253779,28517.0,28516.0,2.2983438]
[1680677488187,0.07253779,28517.0,28516.0,1.91743945]
[1680677488419,0.07253779,28517.0,28516.0,2.23955229]
[1680677488645,0.07253779,28517.0,28516.0,1.86720401]
[1680677489490,0.07253779,28517.0,28516.0,2.23954938]
[1680677489663,0.07253779,28517.0,28516.0,2.23954927]
[1680677489883,0.07253779,28517.0,28516.0,2.2395353]
[1680677493344,0.07253779,28517.0,28516.0,2.2310453]
[1680677494840,0.07253779,28517.0,28516.0,2.2395453]
[1680677496606,0.02287044,28517.0,28516.0,2.2395453]
[1680677498352,0.02287044,28517.0,28516.0,2.0642153]
[1680677501712,0.02287044,28517.0,28516.0,2.0643353]
[1680677502433,0.02287044,28517.0,28516.0,2.0642753]
[1680677502644,0.02287044,28517.0,28516.0,2.0642153]
[1680677504184,0.02287044,28517.0,28516.0,2.0643353]
[1680677504399,0.02287044,28517.0,28516.0,2.0642153]
[1680677505783,0.02287044,28517.0,28516.0,2.0642299]
[1680677505978,0.02287044,28517.0,28516.0,1.69188401]
[1680677506856,0.02287044,28517.0,28516.0,2.06422519]
[1680677507757,0.47798939,28517.0,28516.0,1.73361223]
[1680677507979,0.55188939,28517.0,28516.0,1.35994705]
[1680677508193,0.09677044,28517.0,28516.0,1.35994705]
[1680677508411,0.09677044,28517.0,28516.0,1.73222823]
[1680677508622,0.09677044,28517.0,28516.0,1.35988705]
[1680677509039,0.09667089,28517.0,28516.0,1.73222823]
[1680677509433,0.09667089,28517.0,28516.0,1.35988705]
[1680677509638,0.14560587,28517.0,28516.0,1.62525753]
[1680677510102,0.14560587,28517.0,28516.0,1.99759871]
[1680677510308,0.14560587,28517.0,28516.0,1.62525753]
[1680677510529,0.14560587,28517.0,28516.0,1.99759871]
[1680677510957,0.14560587,28517.0,28516.0,1.62525753]
[1680677511174,0.14560587,28517.0,28516.0,2.17292871]
[1680677513057,0.14560587,28517.0,28516.0,2.17283285]
[1680677513308,0.14560587,28517.0,28516.0,1.99738285]
[1680677513520,0.14560587,28517.0,28516.0,2.17271285]
[1680677515087,0.14560587,28517.0,28516.0,1.99738285]
[1680677515437,0.14560587,28517.0,28516.0,1.62504167]
[1680677516291,0.14581587,28517.0,28516.0,1.62504167]
[1680677518104,0.14581587,28517.0,28516.0,1.80037167]
[1680677521252,0.14581587,28517.0,28516.0,1.62504167]
[1680677522096,0.14581587,28517.0,28516.0,1.80037167]
[1680677522323,0.14581587,28517.0,28516.0,1.62504167]
[1680677522510,0.14560587,28517.0,28516.0,1.80049167]
[1680677522755,0.14581587,28517.0,28516.0,1.80037167]
[1680677524028,0.14581587,28517.0,28516.0,1.90734237]
[1680677524243,0.14581587,28517.0,28516.0,2.2571745]
[1680677525847,0.14581587,28517.0,28516.0,2.2571545]
[1680677529205,0.07170587,28517.0,28516.0,1.68375319]
[1680677529576,0.02277089,28517.0,28516.0,1.68375319]
[1680677529862,0.02283089,28517.0,28516.0,1.68375319]
[1680677530349,0.02283089,28517.0,28516.0,1.68374319]
[1680677530773,0.02283089,28517.0,28516.0,2.04255107]
[1680677531025,0.02283089,28517.0,28516.0,1.68386319]
[1680677531744,0.02283089,28517.0,28516.0,1.68374319]
[1680677532741,0.02283089,28517.0,28516.0,1.98374319]
[1680677533502,0.02283089,28517.0,28516.0,1.95574319]
[1680677533756,0.02283089,28517.0,28516.0,1.98374319]
[1680677534264,0.02283089,28517.0,28516.0,1.95574319]
[1680677534533,0.02276792,28517.0,28516.0,1.98374319]
[1680677534780,0.02276792,28517.0,28516.0,2.38014143]
[1680677535004,0.02276792,28517.0,28516.0,1.98374319]
[1680677535498,0.02276792,28517.0,28516.0,2.37250385]
[1680677536508,0.02276792,28517.0,28516.0,1.98374319]
[1680677536772,0.02276792,28517.0,28516.0,2.35660952]
[1680677537728,0.02276792,28517.0,28516.0,2.18130952]
[1680677537952,0.02276792,28517.0,28516.0,2.35660952]
[1680677538188,0.02276792,28517.0,28516.0,1.98374319]
[1680677538407,0.02276792,28517.0,28516.0,1.95574319]
[1680677538625,0.02276792,28517.0,28516.0,1.98374319]
[1680677539291,0.02276792,28517.0,28516.0,2.34105978]
[1680677539506,0.02276792,28517.0,28516.0,1.98374319]
[1680677541825,0.02276792,28517.0,28516.0,1.95574319]
[1680677542044,0.02276792,28517.0,28516.0,1.98374319]
[1680677543927,0.02276792,28517.0,28516.0,1.99242003]
[1680677544143,0.02276792,28517.0,28516.0,1.96442003]
[1680677544355,0.02276792,28517.0,28516.0,1.99242003]
[1680677545599,0.02276792,28517.0,28516.0,2.36426687]
[1680677545804,0.02276792,28517.0,28516.0,1.99242003]
[1680677546012,0.02276792,28517.0,28516.0,1.81712003]
[1680677546218,0.02276792,28517.0,28516.0,1.99242003]
[1680677547503,0.02276792,28517.0,28516.0,2.36262864]
[1680677549122,0.02276792,28517.0,28516.0,2.33462864]
[1680677549333,0.02276792,28517.0,28516.0,2.40802864]
[1680677550419,0.02276792,28517.0,28516.0,2.40814864]
[1680677550622,0.02276792,28517.0,28516.0,2.43614864]
[1680677550821,0.02276792,28517.0,28516.0,2.43602864]
[1680677556287,0.02276792,28517.0,28516.0,2.43614864]
[1680677556496,0.02276792,28517.0,28516.0,2.06582003]
[1680677556909,0.02276792,28517.0,28516.0,2.4900218]
[1680677558182,0.02276792,28517.0,28516.0,2.4901418]
[1680677558380,0.02276792,28517.0,28516.0,1.89064003]
[1680677558631,0.02276792,28517.0,28516.0,2.06594003]
[1680677558845,0.02276792,28517.0,28516.0,2.39655769]
[1680677559039,0.0226606,28517.0,28516.0,2.39655769]
[1680677562365,0.0226606,28517.0,28516.0,2.32315769]
[1680677564143,0.0226606,28517.0,28516.0,1.99254003]
[1680677564365,0.0226606,28517.0,28516.0,2.32126722]
[1680677572312,0.0226606,28517.0,28516.0,1.99254003]
[1680677572529,0.0226606,28517.0,28516.0,2.42101071]
[1680677573949,0.0226606,28517.0,28516.0,1.99254003]
[1680677574146,0.0226606,28517.0,28516.0,2.33557785]
[1680677574352,0.0226606,28517.0,28516.0,2.14207532]
[1680677575615,0.0226606,28517.0,28516.0,1.7990375]
[1680677576401,0.0226606,28517.0,28516.0,2.22481639]
[1680677582005,0.0226606,28517.0,28516.0,1.7990375]
[1680677582442,0.0226606,28517.0,28516.0,2.18210259]
[1680677584361,0.0226606,28517.0,28516.0,2.18211259]
[1680677586105,0.0226606,28517.0,28516.0,2.11608672]
[1680677586783,0.0226606,28517.0,28516.0,2.08808672]
[1680677587298,0.0226606,28517.0,28516.0,2.11608672]
[1680677590131,0.0226606,28517.0,28516.0,1.7990475]
[1680677590281,0.0226606,28517.0,28516.0,2.1246078]
[1680677592364,0.0226606,28517.0,28516.0,2.1247278]
[1680677592777,0.0226606,28517.0,28516.0,2.1246078]
[1680677594804,0.0226606,28517.0,28516.0,2.0966078]
[1680677595006,0.0226606,28517.0,28516.0,2.1246078]
[1680677595216,0.02259015,28517.0,28516.0,2.1246078]
[1680677595955,0.02259015,28517.0,28516.0,2.1246678]
[1680677596165,0.02259015,28517.0,28516.0,2.1246078]
[1680677596385,0.02259015,28517.0,28516.0,1.7990475]
[1680677596606,0.02259015,28517.0,28516.0,2.14785133]
[1680677597227,0.02259015,28517.0,28516.0,2.17590533]
[1680677598398,0.02259015,28517.0,28516.0,2.23201333]
[1680677609339,0.02259015,28517.0,28516.0,1.8832095]
[1680677609557,0.02343001,28518.0,28517.0,0.50319]
[1680677609783,0.02343001,28519.0,28518.0,0.1]
[1680677609990,0.02343001,28519.0,28518.0,1.39623929]
[1680677611158,0.02343001,28519.0,28518.0,1.42423929]
[1680677611341,0.02343001,28520.0,28518.0,1.83672593]
[1680677611552,0.02343001,28520.0,28519.0,0.016414]
[1680677611784,0.02343001,28520.0,28519.0,0.96421029]
[1680677612957,0.02343001,28520.0,28519.0,0.99221029]
[1680677613385,0.02343001,28520.0,28519.0,1.16751029]
[1680677613840,0.02343001,28520.0,28519.0,1.17911029]
[1680677614584,0.02343001,28520.0,28519.0,1.32575143]
[1680677616106,0.02343001,28520.0,28519.0,1.29775143]
[1680677616363,0.02343001,28520.0,28519.0,1.32576143]